Cogmind - Beta 13 @@@ ROGUE MODE // 2024.04.12 @ 01:46:54 Player: desiring-machine Result: Destroyed by B-75 Beast with Heavy Machine Gun Performance ------------- Evolutions (3) 1500 Regions Visited (8) 1600 Robots Destroyed (42) 210 Value Destroyed (1560) 1560 Prototype IDs (0) 0 Alien Tech Used (0) 0 Bonus (544) 544 TOTAL SCORE: 5414 Bonus ------- High Alert Combat Kills 78 Follower Combat Kills 210 Aligned with FarCom 300 Friendly Fire -44 Cogmind --------- Core Integrity 0/700 Matter 241/300 Energy 100/100 System Corruption 0% Temperature Cool (12) Movement Core (50) Location -7/Lower Caves Parts ------- > --- POWER (1) -------- (None) > --- PROPULSION (4) --- (None) > --- UTILITY (4) ------ (None) > --- WEAPON (4) ------- (None) > --- INVENTORY (5) ---- Fission Core Improved Titanium Leg High-capacity Matter Pod (200) Advanced Weight Redist. System Targeting Computer Peak State ------------ > --- POWER ------------ Light Nuclear Core > --- PROPULSION ------- Armored Huge Wheel Armored Huge Wheel > --- UTILITY ---------- Improved Heat Sink Large Storage Unit Improved Medium Armor Plating Reactive Plating > --- WEAPON ----------- Gatling Laser Plasma Cannon Plasma Cannon High-powered Shotgun > --- INVENTORY -------- Deuterium Engine Light Nuclear Core Light Nuclear Core Improved Titanium Leg Improved Titanium Leg Improved Titanium Leg Improved Titanium Leg Improved Heat Sink High-capacity Matter Pod Advanced Weight Redist. System Advanced ECM Suite Improved Medium Armor Plating Insulated Plating Field Laser Plasma Cannon [Rating: 50] Favorites ----------- Power Light Nuclear Core Engine Ion Engine Power Core Light Nuclear Core Propulsion Improved Titanium Leg Leg Improved Titanium Leg Wheel Armored Huge Wheel Flight Unit Makeshift Flight Unit Utility Improved Heat Sink Device Improved Heat Sink Storage Large Storage Unit Processor Terrain Scan Processor Protection Improved Medium Armor Plating Weapon Plasma Cannon Energy Gun Gatling Laser Energy Cannon Plasma Cannon Ballistic Gun High-powered Shotgun Ballistic Cannon Improved Light Cannon Launcher Rocket Launcher Build | -11 -10 -10 -10 -9 -8 -7 -7 -7 ------- Run | Yrd Mat Min Exi Min Mat Fac Low Low Slots Evolved 6 | . . . . . 4 2 . . Power . | . . . . . . . . . Propulsion 2 | . . . . . 2 . . . Utility 2 | . . . . . 1 1 . . Weapon 2 | . . . . . 1 1 . . Parts Attached 59 | 6 3 2 1 1 22 4 18 2 Power 7 | . 1 . . . 3 . 2 1 Engine 2 | . 1 . . . . . . 1 Core 5 | . . . . . 3 . 2 . Reactor . | . . . . . . . . . Propulsion 11 | 2 . . . . 4 . 4 1 Treads . | . . . . . . . . . Leg 4 | . . . . . . . 4 . Wheel 6 | 2 . . . . 4 . . . Hover . | . . . . . . . . . Flight 1 | . . . . . . . . 1 Utility 17 | 2 1 2 1 . 5 2 4 . Device 10 | 1 1 1 1 . 4 . 2 . Storage 2 | 1 . . . . 1 . . . Processor 1 | . . 1 . . . . . . Hackware . | . . . . . . . . . Protection 4 | . . . . . . 2 2 . Artifact . | . . . . . . . . . Weapon 24 | 2 1 . . 1 10 2 8 . Energy Gun 7 | 1 . . . . 2 2 2 . Energy Cannon 7 | . 1 . . . 5 . 1 . Ballistic Gun 5 | 1 . . . . 2 . 2 . Ballistic Cannon 1 | . . . . . 1 . . . Launcher 4 | . . . . 1 . . 3 . Special Weapon . | . . . . . . . . . Impact Weapon . | . . . . . . . . . Slashing Weapon . | . . . . . . . . . Piercing Weapon . | . . . . . . . . . Special Melee Weapon . | . . . . . . . . . Unidentified Prototypes . | . . . . . . . . . Parts Lost 26 | . . . . . 4 1 7 14 Power 4 | . . . . . . . 2 2 Propulsion 5 | . . . . . . . 1 4 Utility 7 | . . . . . 2 . 1 4 Weapon 10 | . . . . . 2 1 3 4 Highest Loss Streak 7 | . . . . . 2 1 5 7 To Critical Strikes . | . . . . . . . . . Average Slot Usage (%) 84 | . 94 100 100 100 78 81 87 65 Engine 3 | . 9 14 14 14 1 . . . Core 4 | . . . . . 7 7 6 4 Leg 9 | . . . . . . . 23 23 Wheel 13 | . 28 28 28 28 16 15 3 . Device 10 | . 13 9 5 14 17 9 7 4 Storage 9 | . 14 14 14 14 9 7 7 6 Protection 5 | . . . . . . 11 13 4 Energy Gun 6 | . 12 . . . . 8 14 11 Energy Cannon 9 | . 2 14 14 14 20 12 1 . Ballistic Gun 4 | . 14 14 14 9 . 7 4 . Launcher 2 | . . . . 4 4 . 1 4 Naked Turns 10 | . . . . . . . . 10 Heaviest Build 64 | 8 16 16 16 19 48 64 63 56 Greatest Support 80 | 26 26 26 26 26 56 56 80 80 Greatest Overweight (x) 14 | . . . . . 14 1 1 1 Average Overweight (x) . | . . . . . . . . . Largest Inventory Capacity 15 | 8 8 8 8 8 15 15 15 15 Average Capacity 12 | 7 8 8 8 8 13 15 15 14 Most Carried 15 | 5 8 8 8 8 15 15 15 10 Average Carried 9 | 3 5 7 7 7 10 14 11 9 Final Capacity 15 | 8 8 8 8 8 15 15 15 5 Final Carried 15 | 4 8 8 8 8 15 14 10 5 Class Distribution -------------------- 35% | Tank 34% | Mutant 29% | Skirmisher Dominant Class ---------------- Mutant | -10/Materials Mutant | -10/Mines Mutant | -10/Exiles Mutant | -9/Mines Skirmisher | -8/Materials Tank | -7/Factory Tank | -7/Lower Caves Tank | -7/Lower Caves Resources | -11 -10 -10 -10 -9 -8 -7 -7 -7 ----------- Run | Yrd Mat Min Exi Min Mat Fac Low Low Matter Collected 1362 | 274 31 121 . 129 384 48 282 93 Remotely . | . . . . . . . . . Salvage Created 1679 | 85 16 50 . . 936 144 223 225 Parts 76 | 8 1 2 . . 42 3 7 13 Haulers Intercepted 1 | . . . . . 1 . . . Recyclers Shooed . | . . . . . . . . . Parts Field Recycled . | . . . . . . . . . Retrieved Matter . | . . . . . . . . . Parts Self-Destructed 19 | . . . . . . . 7 12 Prevented . | . . . . . . . . . Kills | -11 -10 -10 -10 -9 -8 -7 -7 -7 ------- Run | Yrd Mat Min Exi Min Mat Fac Low Low Combat Hostiles Destroyed 31 | . . 1 . . 14 3 5 8 Guns 16 | . . 1 . . 2 2 5 6 Cannons 9 | . . . . . 9 . . . AOE 4 | . . . . . 2 . . 2 Classes Destroyed 14 | 2 1 1 . . 5 2 1 2 Builder 3 | . . . . . 2 1 . . Tunneler 2 | 1 . . . . 1 . . . Hauler 1 | . . . . . 1 . . . Recycler 2 | 1 . . . . 1 . . . Operator 1 | . 1 . . . . . . . Watcher 1 | . . . . . 1 . . . Swarmer 1 | . . . . . . 1 . . Grunt 17 | . . 1 . . 8 . 3 5 Brawler 4 | . . . . . . 2 1 1 Duelist 1 | . . . . . . . . 1 Sentry 6 | . . . . . 6 . . . Hunter 1 | . . . . . . . . 1 Programmer 1 | . . . . . . . 1 . Zionite 1 | . . . . . 1 . . . Best Kill Streak 8 | 1 1 1 . . 3 2 4 8 Combat Bots Only 8 | . . 1 . . 3 2 4 8 Max Kills in Single Turn 3 | 1 1 1 . . 3 2 2 2 Gunslinging . | . . . . . . . . . Exploded 1 | . . . . . 1 . . 1 Melee . | . . . . . . . . . Uniques/NPCs Destroyed . | . . . . . . . . . Combat | -11 -10 -10 -10 -9 -8 -7 -7 -7 -------- Run | Yrd Mat Min Exi Min Mat Fac Low Low Hostile Shots Fired 316 | . . . . . 75 18 101 122 Missed 108 | . . . . . 20 8 37 43 Damage Taken 3832 | . . . . . 1093 173 1008 1558 Core 818 | . . . . . 105 . 65 648 Absorbed by Shields . | . . . . . . . . . Ignored by Resistances 193 | . . . . . . 22 155 16 Regen/Repaired (Parts) 35 | . . . . . 35 . . . Core Remaining (%) 93 | 100 . . . 100 80 . . . Volleys Fired 95 | 14 1 1 . . 47 13 8 11 Largest 4 | 2 2 2 . . 3 4 4 4 Hottest 265 | 60 80 80 . . 240 265 259 188 Shots Fired 229 | 28 2 2 . . 99 27 29 42 Gun 110 | 28 1 1 . . 7 20 22 31 Cannon 97 | . 1 1 . . 86 7 2 . Launcher 22 | . . . . . 6 . 5 11 Special . | . . . . . . . . . Kinetic 49 | 14 1 1 . . 5 13 6 9 Thermal 158 | 14 1 1 . . 88 14 18 22 Explosive 22 | . . . . . 6 . 5 11 Electromagnetic . | . . . . . . . . . Robot Hit Streak 11 | 7 1 3 . . 9 11 7 8 Robot Miss Streak 7 | 3 . . . . 4 3 2 7 Penetration Max . | . . . . . . . . . Secondary Targets . | . . . . . . . . . Shots Hit Robots 138 | 18 1 2 . . 56 20 20 21 Core Hits 83 | 6 2 1 . . 29 8 14 23 Critical Kills 2 | . . . . . 1 1 . . Critical Parts Destroyed . | . . . . . . . . . Critical Strikes 6 | . . . . . 1 2 . 3 Burn 4 | . . . . . . 1 . 3 Meltdown 2 | . . . . . 1 1 . . Melee Attacks . | . . . . . . . . . Impact . | . . . . . . . . . Slashing . | . . . . . . . . . Piercing . | . . . . . . . . . Sneak Attacks . | . . . . . . . . . Combat Hostiles . | . . . . . . . . . Follow-up Attacks . | . . . . . . . . . Damage Inflicted 3885 | 170 24 26 . . 1711 432 578 944 Guns 1416 | 170 6 8 . . 76 356 383 417 Cannons 1503 | . 18 18 . . 1336 76 55 . Explosions 923 | . . . . . 256 . 140 527 Melee . | . . . . . . . . . Ramming 43 | . . . . . 43 . . . Kinetic 589 | 73 6 8 . . 80 219 81 122 Thermal 2330 | 97 18 18 . . 1332 213 357 295 Explosive 923 | . . . . . 256 . 140 527 Electromagnetic . | . . . . . . . . . Impact . | . . . . . . . . . Slashing . | . . . . . . . . . Piercing . | . . . . . . . . . Highest Corruption 3 | . . . . . 2 3 3 . Average Corruption 2 | . . . . . 2 3 2 . Corruption Purged 3 | . . . . . . . 3 . Corruption Blocked . | . . . . . . . . . Effects 16 | . . . . . 13 1 2 . Message Errors 4 | . . . . . 3 . 1 . Matter Fused 3 | . . . . . 2 1 . . Heat Flow Errors 3 | . . . . . 2 . 1 . Energy Discharges 2 | . . . . . 2 . . . Parts Rejected 1 | . . . . . 1 . . . Data Loss (major) 1 | . . . . . 1 . . . Misfires 1 | . . . . . 1 . . . Alerts 1 | . . . . . 1 . . . Overload Shots . | . . . . . . . . . Overflow Damage 168 | . . . . . 135 16 4 13 Projectiles 21 | . . . . . 5 16 . . Explosions 137 | . . . . . 120 . 4 13 Melee 10 | . . . . . 10 . . . Knockbacks . | . . . . . . . . . Impact . | . . . . . . . . . Kinetic . | . . . . . . . . . Secondary . | . . . . . . . . . Self-Inflicted Damage 382 | . . . . . 227 . 105 50 Shots 9 | . . . . . 4 . 3 2 Rammed 5 | . . . . . 5 . . . Targets Rammed 5 | . . . . . 5 . . . Kicked . | . . . . . . . . . Crushed . | . . . . . . . . . Highest Temperature 699 | 20 40 40 . . 387 410 297 699 Average Temperature 160 | 10 26 26 . . 114 188 144 331 Received Heat Transfer 1224 | . . . . . 405 . 129 690 Effects 31 | . . . . . 3 4 1 23 Shutdowns 4 | . . . . . . 1 . 3 Energy Bleed 5 | . . . . . . . 1 4 Interference 9 | . . . . . 3 2 . 4 Matter Decay 2 | . . . . . . . . 2 Short Circuit 3 | . . . . . . 1 . 2 Damage (minor) 3 | . . . . . . . . 3 Damage (major) 4 | . . . . . . . . 4 Damage (core) 1 | . . . . . . . . 1 Siege Activations . | . . . . . . . . . Robots Corrupted . | . . . . . . . . . Combat Hostiles . | . . . . . . . . . Parts Fried . | . . . . . . . . . Impact Corruptions 1 | . . . . . 1 . . . Robots Melted 2 | . . . . . 1 1 . . Combat Hostiles 2 | . . . . . 1 1 . . Parts Melted 11 | . . . . . 9 . 1 1 Heat Transferred 5099 | 225 37 37 . . 2624 548 747 881 Parts Sabotaged . | . . . . . . . . . Parts Stolen . | . . . . . . . . . Parts Stripped . | . . . . . . . . . Power Chain Reactions . | . . . . . . . . . Alert | -11 -10 -10 -10 -9 -8 -7 -7 -7 ------- Run | Yrd Mat Min Exi Min Mat Fac Low Low Peak Influence 481 | 10 11 24 . . 481 282 . . Initial 212 | . 6 4 . . . 212 . . Average 166 | 5 6 12 . . 276 230 . . Maximum Alert Level 2 | . . . . . 2 1 . . Low Security (%) 56 | 100 100 100 . 100 35 . . . Level 1 28 | . . . . . 36 100 . . Level 2 14 | . . . . . 27 . . . Level 3 . | . . . . . . . . . Level 4 . | . . . . . . . . . Level 5 . | . . . . . . . . . High Security . | . . . . . . . . . Max Security . | . . . . . . . . . Squads Dispatched 5 | . 3 . . . 2 . . . Investigation 2 | . 1 . . . 1 . . . Extermination . | . . . . . . . . . Reinforcement 3 | . 2 . . . 1 . . . Assault . | . . . . . . . . . Garrison . | . . . . . . . . . Intercept . | . . . . . . . . . Searches Triggered . | . . . . . . . . . Construction Impeded 1 | . . . . . 1 . . . Haulers Reinforced . | . . . . . . . . . Active Scanning Responses . | . . . . . . . . . Cargo Convoy Interrupts . | . . . . . . . . . Stealth | -11 -10 -10 -10 -9 -8 -7 -7 -7 --------- Run | Yrd Mat Min Exi Min Mat Fac Low Low Distress Signals 3 | . 1 . . . 2 . . . Communications Jammed . | . . . . . . . . . Distress Signals . | . . . . . . . . . Times Spotted 57 | . 5 2 . . 31 3 7 9 Peak Tracking Total 5 | . 4 2 . . 4 3 5 5 Tactical Retreats 2 | . . . . . . . 2 . Traps | -11 -10 -10 -10 -9 -8 -7 -7 -7 ------- Run | Yrd Mat Min Exi Min Mat Fac Low Low Traps Triggered 3 | . . . . . 2 1 . . Indirectly . | . . . . . . . . . Trap Hack Attempts . | . . . . . . . . . Triggered . | . . . . . . . . . Disarmed . | . . . . . . . . . Reprogrammed . | . . . . . . . . . Reused . | . . . . . . . . . Traps Extracted . | . . . . . . . . . Installed . | . . . . . . . . . Triggered . | . . . . . . . . . Machines | -11 -10 -10 -10 -9 -8 -7 -7 -7 ---------- Run | Yrd Mat Min Exi Min Mat Fac Low Low Machines Disabled 3 | . . . . . 2 1 . . Max in Single Turn 2 | . . . . . 2 1 . . Garrison Access 1 | . . . . . 1 . . . Machines Repaired . | . . . . . . . . . Machines Dismantled . | . . . . . . . . . Machines Sabotaged . | . . . . . . . . . Overloaded Fab Kills . | . . . . . . . . . Hacking | -11 -10 -10 -10 -9 -8 -7 -7 -7 --------- Run | Yrd Mat Min Exi Min Mat Fac Low Low Machines Accessed 3 | . . . . . 3 . . . Terminals . | . . . . . . . . . Fabricators . | . . . . . . . . . Repair Stations 1 | . . . . . 1 . . . Recycling Units 1 | . . . . . 1 . . . Scanalyzers . | . . . . . . . . . Garrison Access 1 | . . . . . 1 . . . Total Hacks 7 | . . . . . 7 . . . Successful 4 | . . . . . 4 . . . Failed 3 | . . . . . 3 . . . Catastrophic . | . . . . . . . . . Database Lockouts . | . . . . . . . . . Manual 1 | . . . 1 . . . . . Terminals . | . . . . . . . . . Fabricators . | . . . . . . . . . Repair Stations 5 | . . . . . 5 . . . Recycling Units 1 | . . . . . 1 . . . Scanalyzers . | . . . . . . . . . Garrison Access 1 | . . . . . 1 . . . Terminal Hacks . | . . . . . . . . . Fabricator Hacks . | . . . . . . . . . Repair Station Hacks 2 | . . . . . 2 . . . Scan Component 1 | . . . . . 1 . . . Repair 1 | . . . . . 1 . . . Recycling Unit Hacks 1 | . . . . . 1 . . . Process 1 | . . . . . 1 . . . Scanalyzer . | . . . . . . . . . Garrison Access Hacks 1 | . . . . . 1 . . . Seal Access 1 | . . . . . 1 . . . Unauthorized Hacks . | . . . . . . . . . Terminals . | . . . . . . . . . Fabricators . | . . . . . . . . . Repair Stations . | . . . . . . . . . Recycling Units . | . . . . . . . . . Scanalyzers . | . . . . . . . . . Garrison Access . | . . . . . . . . . Data Cores Recovered 1 | . 1 . . . . . . . Used . | . . . . . . . . . Hacking Detections 2 | . . . . . 2 . . . Full Trace Events 1 | . . . . . 1 . . . Feedback Events . | . . . . . . . . . Feedback Blocked . | . . . . . . . . . Robot Schematics Acquired . | . . . . . . . . . Robots Built . | . . . . . . . . . Authchips . | . . . . . . . . . Time . | . . . . . . . . . Total Robot Build Rating . | . . . . . . . . . Part Schematics Acquired . | . . . . . . . . . Parts Built . | . . . . . . . . . Authchips . | . . . . . . . . . Time . | . . . . . . . . . Total Part Build Rating . | . . . . . . . . . Parts Repaired 1 | . . . . . 1 . . . Time 38 | . . . . . 38 . . . Parts Recycled . | . . . . . . . . . Recycled Matter . | . . . . . . . . . Retrieved Matter . | . . . . . . . . . Retrieved Components . | . . . . . . . . . Parts Scanalyzed . | . . . . . . . . . Part Schematics Acquired . | . . . . . . . . . Parts Damaged . | . . . . . . . . . Bothacking | -11 -10 -10 -10 -9 -8 -7 -7 -7 ------------ Run | Yrd Mat Min Exi Min Mat Fac Low Low Used RIF Installer . | . . . . . . . . . Robots Hacked . | . . . . . . . . . Non-combat . | . . . . . . . . . Combat . | . . . . . . . . . Robot Hacks Applied . | . . . . . . . . . Relay Couplers Released . | . . . . . . . . . Fabnet Peak Effective % . | . . . . . . . . . Robots Rewired . | . . . . . . . . . Allies Hacked . | . . . . . . . . . Hacks Repelled . | . . . . . . . . . Allies | -11 -10 -10 -10 -9 -8 -7 -7 -7 -------- Run | Yrd Mat Min Exi Min Mat Fac Low Low Total Allies 5 | . . . . 5 . . . . Largest Group 5 | . . . . 5 5 . . . Highest-Rated Group 85 | . . . . 85 85 . . . Highest-Rated Ally 31 | . . . . 31 31 . . . Total Orders . | . . . . . . . . . Ally Attacks 37 | . . . . . 37 . . . Total Damage 714 | . . . . . 714 . . . Kills 10 | . . . . . 10 . . . Allies Corrupted 1 | . . . . . 1 . . . Allies Melted . | . . . . . . . . . Turrets Deployed 1 | . . . . . 1 . . . Intel | -11 -10 -10 -10 -9 -8 -7 -7 -7 ------- Run | Yrd Mat Min Exi Min Mat Fac Low Low Robot Analysis Total . | . . . . . . . . . Derelict Logs Recovered 5 | . . 2 . 1 . . 2 . Drone Launches . | . . . . . . . . . Drone Recoveries . | . . . . . . . . . Exploration | -11 -10 -10 -10 -9 -8 -7 -7 -7 ------------- Run | Yrd Mat Min Exi Min Mat Fac Low Low Turns Passed 4151 | 123 212 152 233 392 1166 227 1077 569 Spaces Moved 2920 | 79 156 123 256 337 713 169 793 294 Core 15 | 8 . . . . 7 . . . Treads . | . . . . . . . . . Legs 874 | . . . . . . . 608 266 Wheels 2003 | 71 156 123 256 337 706 169 185 . Hover . | . . . . . . . . . Flight 28 | . . . . . . . . 28 Fastest Speed 50 | 50 90 90 90 90 90 100 100 55 Average Speed 113 | 85 90 90 90 90 111 106 124 166 Slowest Speed 750 | 90 90 90 90 90 750 115 130 200 Overloaded Moves . | . . . . . . . . . Propulsion Burnouts . | . . . . . . . . . Robots Hopped 4 | . . . . . 4 . . . Cave-ins Triggered . | . . . . . . . . . Exploration Rate (%) 42 | 5 41 38 62 84 61 5 54 29 Regions Visited 8 Branch Regions 5 Pre-discovered Areas 1 | . . 1 . . . . . . Known Exits Taken 1 | . . . . 1 . . . . Unknown Exits Taken 7 | 1 1 1 1 . 1 1 1 . Scrap Searched 5 | . . 1 . 2 . . 2 . Spaces Dug . | . . . . . . . . . Terrain Destroyed 242 | . . . . . 113 . 46 83 Melee . | . . . . . . . . . Projectile 23 | . . . . . 23 . . . AOE 219 | . . . . . 90 . 46 83 Terrain Rammed . | . . . . . . . . . Walls Destroyed . | . . . . . . . . . Machines Disabled . | . . . . . . . . . Actions | -11 -10 -10 -10 -9 -8 -7 -7 -7 --------- Run | Yrd Mat Min Exi Min Mat Fac Low Low Total 3569 | 108 226 162 258 427 989 194 860 345 Wait 386 | . 58 33 . 86 144 . 28 37 Move 2904 | 78 155 122 255 336 704 168 792 294 Hop 4 | . . . . . 4 . . . Pick Up 77 | 10 7 2 1 2 40 5 10 . Fast Attach . | . . . . . . . . . Attach 45 | 6 2 1 1 . 15 3 15 2 Detach 3 | . . . . . . . 2 1 Swap 14 | . 1 1 . 1 7 1 3 . Drop 36 | . 2 2 1 2 23 4 2 . Fire 95 | 14 1 1 . . 47 13 8 11 Melee . | . . . . . . . . . Ram 5 | . . . . . 5 . . . Kick . | . . . . . . . . . Crush . | . . . . . . . . . Escape Stasis . | . . . . . . . . . Rewire . | . . . . . . . . . Trap . | . . . . . . . . . Miscellaneous . | . . . . . . . . . Route ------- -11/Scrapyard -10/Materials (discovered 2 exits: [*Mat] / [*Min]) -10/Mines -10/Exiles (discovered 2 exits: [*Min x2]) -9/Mines (discovered 2 exits: *Mat x2) -8/Materials -7/Factory -7/Lower Caves -7/Lower Caves History --------- Turn | Location | Event 24 | -11/Scrapyard | Discovered new exit (range 16) 124 | -11/Scrapyard | Entered Materials 198 | -10/Materials | Met 8R-AWN 218 | -10/Materials | Discovered new exit (range 13) 315 | -10/Materials | Discovered new exit (range 15) 323 | -10/Materials | Build established: Mutant 336 | -10/Materials | Entered Mines 337 | -10/Mines | Followed 8R-AWN into the Mines 353 | -10/Mines | Learned location of Zion (-7) 398 | -10/Mines | Learned Materials stockpile data 418 | -10/Mines | Received a Rocket Launcher from a helpful Derelict 477 | -10/Mines | Discovered new exit (range 5) 488 | -10/Mines | Entered Exiles 510 | -10/Exiles | Welcomed by 8R-AWN 528 | -10/Exiles | Discovered new exit (range 14) 559 | -10/Exiles | Met EX-HEX 560 | -10/Exiles | Learned about 8R-AWN's background 591 | -10/Exiles | Met EX-BIN 606 | -10/Exiles | Aligned with FarCom system 606 | -10/Exiles | Given EX-Vault access code 628 | -10/Exiles | Opened EX-Vault 634 | -10/Exiles | Found Deploy-a-Sentry 653 | -10/Exiles | Warned to stay clear of 0b10 Research branches 681 | -10/Exiles | Met EX-DEC 712 | -10/Exiles | Discovered new exit (range 12) 721 | -10/Exiles | Left Exiles lab with Deploy-a-Sentry 721 | -10/Exiles | Entered Mines 886 | -9/Mines | Assisted by bots powering up and referring to "LRC-V3" 990 | -9/Mines | Identified exit to Materials 1081 | -9/Mines | Discovered exit to Materials (range 9) 1113 | -9/Mines | Entered Materials 1113 | -8/Materials | Accompanied by 5 allies 1113 | -8/Materials | Evolved 4 slots: Propulsion x2, Utility x1, Weapon x1 1118 | -8/Materials | Led the pair of lost Derelicts to an unsafe place 1375 | -8/Materials | Lost 3 allies 1415 | -8/Materials | DAS Turret deployed 1432 | -8/Materials | Build established: Skirmisher 2173 | -8/Materials | Repaired Lgt. Nuclear Core? 2240 | -8/Materials | Discovered new exit (range 16) 2279 | -8/Materials | Entered Factory 2279 | -7/Factory | Evolved 2 slots: Utility x1, Weapon x1 2384 | -7/Factory | Discovered new exit (range 5) 2506 | -7/Factory | Entered Lower Caves 2513 | -7/Lower Caves | Learned Factory stockpile data 2646 | -7/Lower Caves | Build established: Tank 2697 | -7/Lower Caves | Spotted B-75 Beast 2769 | -7/Lower Caves | Lost 5 parts (1p1n3w) 3519 | -7/Lower Caves | Learned Factory interactive machine intel 3576 | -7/Lower Caves | Discovered new exit (range 5) 3583 | -7/Lower Caves | Entered another Lower Caves area 3646 | -7/Lower Caves | Destroyed 8 combat bots 3718 | -7/Lower Caves | Encountered a Warlord checkpoint 3949 | -7/Lower Caves | Spotted B-75 Beast 4003 | -7/Lower Caves | Lost 7 parts (1p2n2u2w) 4100 | -7/Lower Caves | Core integrity fell below 50% 4132 | -7/Lower Caves | Core integrity fell below 20% 4152 | -7/Lower Caves | Destroyed by B-75 Beast with Heavy Machine Gun Last Messages --------------- Assembled, have you?" 03960_ Lgt. Nuclear Core destroyed. 03960_ Imp. Medium Armor Plating destroyed. 03960_ Broken Imp. Titanium Leg destroyed. 03963_ Rocket Launcher destroyed. 03963_ Imp. Heat Sink destroyed. 03963_ Critical hit (Blast). 03966_ Gatling Laser destroyed. 03969_ Critical hit (Meltdown: +330). 03972_ Broken Imp. Titanium Leg destroyed. 03973_ Acquired 6 matter. 04099_ Imp. Titanium Leg destroyed. 04103_ Lrg. Storage Unit destroyed. 04109_ Knocked back. 04114_ Mak. Laser destroyed. 04126_ Knocked back. 04129_ Acquired 2 matter. 04131_ Deuterium Engine destroyed. 04142_ Mak. Flight Unit destroyed. 04142_ Knocked back. Map ----- +----------------------------------------------------+ | ??????????????????????????????????? ? #????? | | ?????????????????????????????????## #???? | | ????????????????????????????????? ???? | | ?????????????????????????????????? ???? | | ???????????????????????????????? ??# ? ##?? | | ??????????????????????????????? ## ?# ### | | ??????????????????????????????? ## | | ??????????????????????????????? #?# | | ?????????????????????????????? #### | | ???????????????????????????????? ## | | ???????????????????????????????????# % | | ???????????????????????????????????# | | ???????????????????????????????????# ## | | ??????????????????####?????????????# ### | | ?????????????????## #????????????## #?## | | ??????????????#### #????????????# ##?## | | ??????????????#" ! #?????????????# % ##?? | | ??????????????# !! ##??????????### %#?# | | ??????????????# ! ##????????### ### #?# | | ??????????????## #????????#; ;##?## #?? | | ???????????????## %#???????## ;##???## #?? | | ??????????????### ##???#### ##?????# #?? | | ??????????????#; ;"##### % ;#??????# ### | | ??????????????## ;; #;# "##?????## # | | ???????????????## ;;;% ;;## ##????### # # | | ????????????????#% BB @ ##### #???### # #? | | ????????????????## BB %##???# ##### ####? | | ?????????????????## ;###????# # ##???? | | ??????????????????## ##???????# # ##????? | | ???????????????????#####????????######## ###?????? | | ???????????????????????????????????????###???????? | | ?????????????????????????????????????????????????? | | ?????????????????????????????????????????????????? | | ?????????????????????????????????????????????????? | | ?????????????????????????????????????????????????? | | ?????????????????????????????????????????????????? | | ?????????????????????????????????????????????????? | | ?????????????????????????????????????????????????? | | ?????????????????????????????????????????????????? | | ?????????????????????????????????????????????????? | | ?????????????????????????????????????????????????? | | ?????????????????????????????????????????????????? | | ?????????????????????????????????????????????????? | | ?????????????????????????????????????????????????? | | ?????????????????????????????????????????????????? | | ?????????????????????????????????????????????????? | | | | | | | | | +----------------------------------------------------+ Best States ------------- Heat Dissipation 62 Energy Generation 14 Energy Capacity 275 Matter Stores 300 Matter Capacity 300 Sight Range 16 Robot Scan Range 15 Terrain Scan Density 85 ECM Strength 1 Armor Coverage 375 Resistance: KI 20 Evasion (%) 59 Item Schematics ----------------- None Robot Schematics ------------------ None Fabricated ------------ Nothing Alien Tech Used ----------------- None Achievements -------------- None Challenges ------------ None Game ------ Seed ChainAntimissileDiverter Manual? 0 Play Time 00:47:30 Cumulative 10.4 hours Start 2024.04.12 @ 00:34:59 End 2024.04.12 @ 01:46:54 Sessions 1 Manual Loads 0 Difficulty Rogue Special Mode None Game No. 16 Rogue 16 Adventurer 0 Explorer 0 Win Type - Total 0 Types 0/0/0/0/0/0/0/0/0 Lore% 10 Gallery% 20 Achievement% 15 Wizard Run 0 Options --------- Layout 1 ASCII 0 Keyboard 0 Movement Numpad Keybinds 0 Fullscreen 1 Font 24/Smallcaps Map View 50x35 Zoom Use 0% Tactical HUD 1 Map Filters NONE Filters NONE Steam 0 RUN: 1f036d7a-6b2e-423e-9bec-a457f7569b54